fUSD/lending_fUSD_20241220
["ID","MTS","AMOUNT","RATE_DAILY","PERIOD"]
[346104224,1734706244994,-1355.77,0.00021917,4]
[346104226,1734706245003,-500.0,0.00021917,4]
[346104228,1734706245013,-500.0,0.00021917,4]
[346104230,1734706245022,-500.0,0.00021917,4]
[346104232,1734706245033,-500.0,0.00021917,4]
[346104234,1734706245043,-1403.12,0.00021917,4]
[346104236,1734706245052,-500.0,0.00021917,4]
[346104238,1734706245062,-500.0,0.00021917,4]
[346104240,1734706245074,-500.0,0.00021917,4]
[346104242,1734706245083,-500.0,0.00021917,4]
[346104244,1734706245093,-500.0,0.00021917,4]
[346104246,1734706245104,-2413.98,0.00021917,4]
[346104248,1734706245114,-508.70699458,0.00021917,4]
[346104250,1734706245123,-1096.54,0.00021917,4]
[346104252,1734706245133,-1447.53,0.00021917,4]
[346104254,1734706245143,-500.0,0.00021917,4]
[346104256,1734706245152,-2100.15,0.00021917,4]
[346104258,1734706245162,-500.0,0.00021917,4]
[346104260,1734706245172,-500.0,0.00021917,4]
[346104262,1734706245182,-1164.92,0.00021917,4]
[346104264,1734706245192,-500.0,0.00021917,4]
[346104266,1734706245202,-500.0,0.00021917,4]
[346104268,1734706245212,-806.07,0.00021917,4]
[346104270,1734706245222,-500.0,0.00021917,4]
[346104272,1734706245232,-946.66,0.00021917,4]
[346104274,1734706245242,-500.0,0.00021917,4]
[346104276,1734706245252,-2139.52,0.00021917,4]
[346104278,1734706245262,-500.0,0.00021917,4]
[346104280,1734706245272,-9726.29,0.00021917,4]
[346104282,1734706245284,-1420.63,0.00021917,4]
[346104284,1734706245294,-500.0,0.00021917,4]
[346104286,1734706245305,-1128.68,0.00021917,4]
[346104288,1734706245315,-500.0,0.00021917,4]
[346104290,1734706245325,-500.0,0.00021917,4]
[346104292,1734706245335,-500.0,0.00021917,4]
[346104294,1734706245346,-500.0,0.00021917,4]
[346104296,1734706245356,-500.0,0.00021917,4]
[346104299,1734706245366,-500.0,0.00021917,4]
[346104302,1734706245376,-500.0,0.00021917,4]
[346104304,1734706245386,-2084.41,0.00021917,4]
[346104312,1734706245453,-500.0,0.00021917,4]
[346104314,1734706245463,-1010.95,0.00021917,4]
[346104316,1734706245472,-500.0,0.00021917,4]
[346104318,1734706245481,-500.0,0.00021917,4]
[346104319,1734706245491,-3050.34,0.00021917,4]
[346104321,1734706245500,-500.0,0.00021917,4]
[346104323,1734706245509,-1673.65,0.00021917,4]
[346104325,1734706245518,-500.0,0.00021917,4]
[346104327,1734706245530,-500.0,0.00021917,4]
[346104329,1734706245540,-500.0,0.00021917,4]
[346104331,1734706245549,-1176.91,0.00021917,4]
[346104333,1734706245560,-1000.0,0.00021917,4]
[346104335,1734706245569,-500.0,0.00021917,4]
[346104337,1734706245579,-589.28,0.00021917,4]
[346104339,1734706245588,-725.97,0.00021917,4]
[346104341,1734706245598,-500.0,0.00021917,4]
[346104343,1734706245607,-500.0,0.00021917,4]
[346104345,1734706245616,-500.0,0.00021917,4]
[346104347,1734706245626,-1104.52,0.00021917,4]
[346104349,1734706245635,-500.0,0.00021917,4]
[346104351,1734706245644,-500.0,0.00021917,4]
[346104353,1734706245655,-500.0,0.00021917,4]
[346104355,1734706245667,-830.63,0.00021917,4]
[346104356,1734706245676,-500.0,0.00021917,4]
[346104358,1734706245685,-767.18,0.00021917,4]
[346104360,1734706245695,-500.0,0.00021917,4]
[346104362,1734706245704,-304.46474697,0.00021917,4]
[346104364,1734706245714,-500.0,0.00021917,4]
[346104366,1734706245723,-500.0,0.00021917,4]
[346104368,1734706245733,-500.0,0.00021917,4]
[346104370,1734706245742,-500.0,0.00021917,4]
[346104372,1734706245751,-500.0,0.00021917,4]
[346104374,1734706245760,-419.79781167,0.00021917,4]
[346104376,1734706245769,-934.5,0.00021917,4]
[346104378,1734706245780,-518.41,0.00021917,4]
[346104380,1734706245790,-500.0,0.00021917,4]
[346104382,1734706245799,-681.89,0.00021917,4]
[346104384,1734706245811,-517.06,0.00021917,4]
[346104386,1734706245820,-709.19,0.00021917,4]
[346104388,1734706245829,-500.0,0.00021917,4]
[346104390,1734706245838,-503.50602921,0.00021917,4]
[346104392,1734706245847,-1168.93,0.00021917,4]
[346104394,1734706245856,-500.0,0.00021917,4]
[346104396,1734706245866,-500.0,0.00021917,4]
[346104398,1734706245875,-7786.57,0.00021917,4]
[346104400,1734706245884,-500.0,0.00021917,4]
[346104402,1734706245893,-498.17679642,0.00021917,4]
[346104404,1734706245902,-500.0,0.00021917,4]
[346104406,1734706245912,-500.0,0.00021917,4]
[346104408,1734706245921,-500.0,0.00021917,4]
[346104410,1734706245930,-500.0,0.00021917,4]
[346104412,1734706245939,-1513.63,0.00021917,4]
[346104414,1734706245948,-500.0,0.00021917,4]
[346104416,1734706245957,-518.01235808,0.00021917,4]
[346104418,1734706245967,-1594.97,0.00021917,4]
[346104420,1734706245976,-4930.1,0.00021917,4]
[346104422,1734706245985,-500.0,0.00021917,4]
[346104424,1734706245994,-722.19,0.00021917,4]
[346104426,1734706246003,-500.0,0.00021917,4]
[346104428,1734706246012,-500.0,0.00021917,4]
[346104430,1734706246021,-570.24,0.00021917,4]
[346104431,1734706246033,-500.0,0.00021917,4]
[346104434,1734706246043,-500.0,0.00021917,4]
[346104436,1734706246053,-535.21,0.00021917,4]
[346104438,1734706246063,-500.0,0.00021917,4]
[346104440,1734706246072,-500.0,0.00021917,4]
[346104442,1734706246082,-500.0,0.00021917,4]
[346104443,1734706246091,-704.71,0.00021917,4]
[346104445,1734706246101,-500.0,0.00021917,4]
[346104447,1734706246110,-661.16,0.00021917,4]
[346104449,1734706246119,-500.0,0.00021917,4]
[346104451,1734706246129,-871.46,0.00021917,4]
[346104454,1734706246143,-500.0,0.00021917,4]
[346104455,1734706246152,-500.0,0.00021917,4]
[346104456,1734706246162,-358.87463768,0.00021917,4]
[346104457,1734706246171,-500.0,0.00021917,4]
[346104458,1734706246180,-827.8,0.00021917,4]
[346104459,1734706246189,-500.0,0.00021917,4]
[346104460,1734706246199,-1165.6,0.00021917,4]
[346104461,1734706246208,-1055.56,0.00021917,4]
[346104462,1734706246216,-500.0,0.00021917,4]
[346104463,1734706246225,-500.0,0.00021917,4]
[346104464,1734706246234,-821.14,0.00021917,4]
[346104465,1734706246243,-500.0,0.00021917,4]
[346104466,1734706246252,-500.0,0.00021917,4]
[346104467,1734706246261,-500.0,0.00021917,4]
[346104468,1734706246273,-500.0,0.00021917,4]
[346104469,1734706246285,-500.0,0.00021917,4]
[346104470,1734706246294,-1326.77,0.00021917,4]
[346104471,1734706246303,-500.0,0.00021917,4]
[346104473,1734706246313,-508.75341723,0.00021917,4]
[346104475,1734706246322,-500.0,0.00021917,4]
[346104477,1734706246332,-500.0,0.00021917,4]
[346104479,1734706246342,-500.0,0.00021917,4]
[346104481,1734706246351,-502.39867899,0.00021917,4]
[346104483,1734706246361,-535.94,0.00021917,4]
[346104485,1734706246370,-625.47,0.00021917,4]
[346104487,1734706246379,-500.0,0.00021917,4]
[346104489,1734706246388,-500.0,0.00021917,4]
[346104491,1734706246398,-500.0,0.00021917,4]
[346104493,1734706246407,-1263.28,0.00021917,4]
[346104495,1734706246417,-500.0,0.00021917,4]
[346104497,1734706246426,-500.0,0.00021917,4]
[346104499,1734706246435,-794.37,0.00021917,4]
[346104501,1734706246445,-500.0,0.00021917,4]
[346104503,1734706246457,-500.0,0.00021917,4]
[346104505,1734706246466,-500.0,0.00021917,4]
[346104506,1734706246475,-500.0,0.00021917,4]
[346104508,1734706246486,-500.0,0.00021917,4]
[346104510,1734706246495,-500.0,0.00021917,4]
[346104512,1734706246503,-500.0,0.00021917,4]
[346104514,1734706246513,-511.24,0.00021917,4]
[346104516,1734706246522,-500.0,0.00021917,4]
[346104518,1734706246534,-1471.35,0.00021917,4]
[346104520,1734706246543,-500.0,0.00021917,2]
[346104522,1734706246552,-500.0,0.00021917,4]
[346104524,1734706246562,-1986.90059895,0.00021946,2]
[346104526,1734706246572,-150.0,0.00021974,4]
[346104528,1734706246582,-150.0,0.00021989,4]
[346104530,1734706246591,-1400.0,0.00022,2]
[346104532,1734706246601,-2000.0,0.00022,7]
[346104534,1734706246611,-718.66738302,0.00022029,2]
[346104536,1734706246621,-5597.693481,0.00022057,2]
[346104538,1734706246631,-150.0,0.00022058,4]
[346104540,1734706246639,-150.0,0.00022066,4]
[346104542,1734706246650,-151.0,0.00022086,2]
[346104544,1734706246664,-150.0,0.00022124,4]
[346104546,1734706246673,-150.0,0.00022143,4]
[346104548,1734706246683,-1400.0,0.0002216,2]
[346104550,1734706246692,-600.0,0.0002216,2]
[346104552,1734706246702,-404.43667664,0.0002216,2]
[346104554,1734706246711,-500.0,0.00022173,2]
[346104556,1734706246721,-1986.90059895,0.00022175,2]
[346104558,1734706246731,-718.66738302,0.00022185,2]
[346104560,1734706246740,-335.1,0.0002219,4]
[346104562,1734706246750,-294.213242,0.00022191,4]
[346104564,1734706246760,-500.0,0.00022191,4]
[346104566,1734706246770,-500.0,0.00022191,4]
[346104567,1734706246782,-500.0,0.00022191,4]
[346104569,1734706246792,-260.901097,0.00022191,4]
[346104571,1734706246802,-501.13916705,0.00022191,2]
[346104573,1734706246812,-512.66996759,0.00022191,4]
[346104575,1734706246822,-500.0,0.00022191,4]
[346104578,1734706246832,-500.0,0.00022191,4]
[346104580,1734706246841,-502.55,0.00022191,4]
[346104581,1734706246850,-500.0,0.00022191,4]
[346104583,1734706246860,-500.0,0.00022191,4]
[346104585,1734706246869,-500.0,0.00022191,4]
[346104587,1734706246878,-500.0,0.00022191,4]
[346104589,1734706246888,-510.01706947,0.00022191,4]
[346104591,1734706246897,-500.0,0.00022191,4]
[346104593,1734706246906,-500.0,0.00022191,4]
[346104595,1734706246916,-500.0,0.00022191,4]
[346104597,1734706246925,-500.0,0.00022191,4]
[346104599,1734706246934,-500.0,0.00022191,4]
[346104601,1734706246943,-500.0,0.00022191,4]
[346104603,1734706246952,-500.0,0.00022191,4]
[346104605,1734706246962,-500.0,0.00022191,4]
[346104607,1734706246971,-500.0,0.00022191,4]
[346104609,1734706246980,-500.0,0.00022191,4]
[346104611,1734706246989,-500.0,0.00022191,4]
[346104613,1734706246999,-500.0,0.00022191,4]
[346104615,1734706247008,-500.0,0.00022191,4]
[346104617,1734706247017,-500.0,0.00022191,4]
[346104619,1734706247027,-500.0,0.00022191,4]
[346104621,1734706247037,-500.0,0.00022191,4]
[346104623,1734706247046,-500.0,0.00022191,4]
[346104625,1734706247058,-500.0,0.00022191,4]
[346104627,1734706247067,-500.0,0.00022191,4]
[346104629,1734706247076,-623.74283802,0.00022191,4]
[346104631,1734706247086,-500.0,0.00022191,4]
[346104633,1734706247095,-500.0,0.00022191,4]
[346104635,1734706247105,-500.0,0.00022191,4]
[346104637,1734706247114,-500.0,0.00022191,4]
[346104639,1734706247123,-561.45252448,0.00022191,4]
[346104641,1734706247132,-500.0,0.00022191,4]
[346104643,1734706247141,-500.0,0.00022191,4]
[346104645,1734706247151,-500.0,0.00022191,4]
[346104647,1734706247159,-500.0,0.00022191,4]
[346104649,1734706247169,-500.0,0.00022191,4]
[346104651,1734706247178,-500.0,0.00022191,4]
[346104652,1734706247188,-500.0,0.00022191,4]
[346104654,1734706247198,-393.5107377,0.00022191,4]
[346104656,1734706247208,-500.0,0.00022191,4]
[346104658,1734706247218,-500.0,0.00022191,4]
[346104660,1734706247227,-500.0,0.00022191,4]
[346104663,1734706247237,-525.83,0.00022191,4]
[346104664,1734706247247,-500.0,0.00022191,4]
[346104666,1734706247256,-500.0,0.00022191,4]
[346104668,1734706247266,-500.0,0.00022191,4]
[346104670,1734706247275,-500.0,0.00022191,4]
[346104672,1734706247285,-500.0,0.00022191,4]
[346104674,1734706247294,-500.0,0.00022191,4]
[346104676,1734706247303,-500.0,0.00022191,4]
[346104678,1734706247312,-517.83,0.00022191,4]
[346104680,1734706247321,-500.0,0.00022191,4]
[346104682,1734706247331,-333.14,0.00022191,4]
[346104684,1734706247340,-639.87,0.00022191,4]
[346104686,1734706247348,-500.0,0.00022191,4]
[346104688,1734706247358,-500.0,0.00022191,4]
[346104689,1734706247367,-833.18,0.00022191,4]
[346104691,1734706247376,-500.0,0.00022191,4]
[346104694,1734706247387,-680.33,0.00022191,4]
[346104696,1734706247396,-500.0,0.00022191,4]
[346104698,1734706247405,-500.0,0.00022191,4]
[346104700,1734706247415,-500.0,0.00022191,4]
[346104702,1734706247426,-1075.01,0.00022191,4]
[346104704,1734706247436,-615.34,0.00022191,4]
[346104706,1734706247444,-500.0,0.00022191,4]
[346104708,1734706247453,-500.0,0.00022191,4]
[346104710,1734706247463,-597.01,0.00022191,4]
[346104711,1734706247472,-500.0,0.00022191,4]
[346104713,1734706247482,-500.0,0.00022191,4]
[346104715,1734706247491,-500.0,0.00022191,4]
[346104717,1734706247501,-618.08,0.00022191,4]
[346104719,1734706247510,-500.0,0.00022191,2]
[346104721,1734706247519,-500.0,0.00022191,4]
[346104723,1734706247531,-500.0,0.00022191,4]
[346104726,1734706247540,-642.14,0.00022191,4]
[346104728,1734706247550,-500.0,0.00022191,4]
[346104730,1734706247560,-500.0,0.00022191,4]
[346104731,1734706247569,-786.34,0.00022191,4]
[346104733,1734706247579,-500.0,0.00022191,4]
[346104735,1734706247588,-500.0,0.00022191,4]
[346104737,1734706247598,-648.83,0.00022191,4]
[346104739,1734706247607,-208.72707553,0.00022191,4]
[346104741,1734706247616,-500.0,0.00022191,4]
[346104743,1734706247625,-515.43,0.00022191,4]
[346104745,1734706247635,-643.63,0.00022191,4]
[346104747,1734706247644,-523.6099966,0.00022191,2]
[346104749,1734706247653,-603.29097056,0.00022191,4]
[346104751,1734706247665,-500.0,0.00022191,4]
[346104753,1734706247674,-861.69,0.00022191,4]
[346104755,1734706247683,-500.0,0.00022191,4]
[346104757,1734706247693,-500.0,0.00022191,4]
[346104759,1734706247705,-500.0,0.00022191,4]
[346104761,1734706247715,-500.0,0.00022191,4]
[346104763,1734706247724,-500.0,0.00022191,4]
[346104765,1734706247736,-500.0,0.00022191,4]
[346104767,1734706247746,-500.0,0.00022191,4]
[346104769,1734706247755,-500.0,0.00022191,4]
[346104772,1734706247765,-500.0,0.00022191,4]
[346104774,1734706247774,-500.0,0.00022191,4]
[346104775,1734706247788,-500.0,0.00022191,4]
[346104777,1734706247798,-500.0,0.00022191,4]
[346104779,1734706247807,-564.26,0.00022191,4]
[346104781,1734706247816,-500.0,0.00022191,4]
[346104783,1734706247827,-500.0,0.00022191,4]
[346104786,1734706247837,-500.0,0.00022191,4]
[346104787,1734706247848,-500.0,0.00022191,4]
[346104790,1734706247858,-500.0,0.00022191,4]
[346104791,1734706247867,-500.0,0.00022191,4]
[346104794,1734706247876,-500.0,0.00022191,4]
[346104795,1734706247886,-701.77,0.00022191,4]
[346104797,1734706247895,-500.0,0.00022191,4]
[346104799,1734706247904,-500.0,0.00022191,4]
[346104802,1734706247914,-683.55,0.00022191,4]
[346104804,1734706247923,-500.0,0.00022191,4]
[346104805,1734706247933,-500.0,0.00022191,4]
[346104808,1734706247943,-500.0,0.00022191,4]
[346104810,1734706247952,-500.0,0.00022191,4]
[346104811,1734706247962,-500.0,0.00022191,4]
[346104813,1734706247971,-500.0,0.00022191,4]
[346104815,1734706247980,-500.0,0.00022191,4]
[346104817,1734706247990,-660.1,0.00022191,4]
[346104819,1734706248000,-819.12,0.00022191,4]
[346104821,1734706248009,-551.65,0.00022191,4]
[346104823,1734706248018,-500.0,0.00022191,4]
[346104825,1734706248026,-500.0,0.00022191,4]
[346104827,1734706248039,-500.0,0.00022191,4]
[346104829,1734706248048,-803.14,0.00022191,4]
[346104831,1734706248060,-500.0,0.00022191,4]
[346104833,1734706248069,-500.0,0.00022191,4]
[346104835,1734706248079,-745.51,0.00022191,4]
[346104837,1734706248088,-500.0,0.00022191,4]
[346104839,1734706248097,-500.0,0.00022191,4]
[346104841,1734706248107,-500.0,0.00022191,4]
[346104843,1734706248116,-500.0,0.00022191,4]
[346104845,1734706248126,-556.81216362,0.00022191,4]
[346104847,1734706248135,-841.98,0.00022191,4]
[346104849,1734706248144,-500.0,0.00022191,4]
[346104851,1734706248153,-500.0,0.00022191,4]
[346104853,1734706248163,-500.0,0.00022191,4]
[346104855,1734706248172,-500.0,0.00022191,4]
[346104856,1734706248181,-637.76,0.00022191,4]
[346104858,1734706248191,-503.08078391,0.00022191,4]
[346104859,1734706248201,-489.03657158,0.00022191,4]
[346104860,1734706248211,-500.54,0.00022191,4]
[346104861,1734706248221,-500.0,0.00022191,4]
[346104862,1734706248231,-500.0,0.00022191,4]
[346104863,1734706248241,-500.0,0.00022191,4]
[346104864,1734706248251,-500.0,0.00022191,4]
[346104865,1734706248261,-500.0,0.00022191,4]
[346104866,1734706248271,-500.0,0.00022191,4]
[346104867,1734706248282,-500.0,0.00022191,4]
[346104868,1734706248292,-420.7,0.00022191,4]
[346104869,1734706248301,-500.0,0.00022191,4]
[346104870,1734706248311,-1415.46,0.00022191,4]
[346104871,1734706248321,-500.0,0.00022191,4]
[346104872,1734706248331,-721.22,0.00022191,4]
[346104873,1734706248341,-500.0,0.00022191,4]
[346104874,1734706248350,-606.15,0.00022191,4]
[346104875,1734706248360,-527.65,0.00022191,4]
[346104876,1734706248369,-500.0,0.00022191,4]
[346104877,1734706248379,-1380.54,0.00022191,4]
[346104878,1734706248389,-500.0,0.00022191,4]
[346104879,1734706248399,-500.0,0.00022191,4]
[346104880,1734706248409,-500.0,0.00022191,4]
[346104881,1734706248418,-500.0,0.00022191,4]
[346104882,1734706248428,-500.0,0.00022191,4]
[346104883,1734706248437,-751.8,0.00022191,4]
[346104884,1734706248447,-619.03,0.00022191,4]
[346104885,1734706248456,-500.0,0.00022191,4]
[346104886,1734706248466,-500.0,0.00022191,4]
[346104887,1734706248476,-489.68,0.00022191,4]
[346104888,1734706248485,-572.05,0.00022191,4]
[346104889,1734706248495,-584.92132623,0.00022191,4]
[346104890,1734706248505,-669.68,0.00022191,4]
[346104891,1734706248514,-500.0,0.00022191,4]
[346104892,1734706248528,-654.18,0.00022191,4]
[346104893,1734706248538,-689.33,0.00022191,4]
[346104894,1734706248547,-500.0,0.00022191,4]
[346104895,1734706248557,-500.0,0.00022191,4]
[346104896,1734706248567,-500.0,0.00022191,4]
[346104897,1734706248576,-500.0,0.00022191,4]
[346104898,1734706248586,-500.0,0.00022191,4]
[346104899,1734706248595,-500.0,0.00022191,4]
[346104900,1734706248604,-500.0,0.00022191,4]
[346104901,1734706248614,-500.0,0.00022191,4]
[346104902,1734706248624,-500.0,0.00022191,4]
[346104903,1734706248634,-607.77,0.00022191,4]
[346104904,1734706248643,-500.0,0.00022191,4]
[346104905,1734706248657,-500.0,0.00022191,4]
[346104906,1734706248666,-500.0,0.00022191,4]
[346104907,1734706248675,-500.0,0.00022191,4]
[346104908,1734706248685,-500.0,0.00022191,4]
[346104909,1734706248695,-500.0,0.00022191,4]
[346104910,1734706248705,-554.27,0.00022191,4]
[346104911,1734706248715,-500.0,0.00022191,4]
[346104912,1734706248724,-500.0,0.00022191,4]
[346104913,1734706248735,-500.0,0.00022191,4]
[346104914,1734706248746,-500.0,0.00022191,4]
[346104915,1734706248755,-500.0,0.00022191,4]
[346104916,1734706248765,-500.0,0.00022191,4]
[346104917,1734706248774,-500.0,0.00022191,4]
[346104918,1734706248784,-778.32,0.00022191,4]
[346104919,1734706248794,-500.0,0.00022191,4]
[346104920,1734706248803,-500.0,0.00022191,4]
[346104921,1734706248813,-500.0,0.00022191,4]
[346104922,1734706248822,-500.0,0.00022191,4]
[346104923,1734706248831,-508.44,0.00022191,4]
[346104924,1734706248841,-500.0,0.00022191,4]
[346104925,1734706248851,-500.0,0.00022191,4]
[346104926,1734706248860,-500.0,0.00022191,4]
[346104927,1734706248869,-500.0,0.00022191,4]
[346104928,1734706248879,-500.0,0.00022191,4]
[346104929,1734706248889,-500.0,0.00022191,4]
[346104930,1734706248898,-500.0,0.00022191,4]
[346104931,1734706248907,-500.0,0.00022191,4]
[346104932,1734706248917,-267.17,0.00022191,4]
[346104933,1734706248926,-500.0,0.00022191,4]
[346104934,1734706248936,-500.0,0.00022191,4]
[346104935,1734706248945,-500.0,0.00022191,4]
[346104936,1734706248955,-500.0,0.00022191,4]
[346104937,1734706248965,-500.0,0.00022191,4]
[346104938,1734706248974,-500.0,0.00022191,4]
[346104939,1734706248983,-500.0,0.00022191,4]
[346104940,1734706248993,-500.0,0.00022191,4]
[346104941,1734706249003,-500.0,0.00022191,4]
[346104942,1734706249012,-500.0,0.00022191,4]
[346104943,1734706249022,-500.0,0.00022191,4]
[346104944,1734706249032,-500.0,0.00022191,4]
[346104945,1734706249042,-500.0,0.00022191,4]
[346104946,1734706249052,-538.99321232,0.00022191,4]
[346104947,1734706249062,-500.0,0.00022191,4]
[346104948,1734706249071,-500.0,0.00022191,4]
[346104949,1734706249080,-500.0,0.00022191,4]
[346104950,1734706249091,-500.0,0.00022191,4]
[346104951,1734706249100,-500.0,0.00022191,4]
[346104952,1734706249110,-500.0,0.00022191,4]
[346104953,1734706249120,-632.09,0.00022191,4]
[346104954,1734706249130,-500.0,0.00022191,4]
[346104955,1734706249140,-511.2,0.00022191,4]
[346104956,1734706249149,-500.0,0.00022191,4]
[346104957,1734706249159,-500.0,0.00022191,4]
[346104958,1734706249168,-500.0,0.00022191,4]
[346104959,1734706249178,-500.0,0.00022191,4]
[346104960,1734706249188,-500.0,0.00022191,4]
[346104961,1734706249198,-500.0,0.00022191,4]
[346104962,1734706249207,-500.0,0.00022191,4]
[346104963,1734706249216,-925.32,0.00022191,4]
[346104964,1734706249227,-500.0,0.00022191,4]
[346104965,1734706249236,-500.0,0.00022191,4]
[346104966,1734706249246,-500.0,0.00022191,4]
[346104967,1734706249255,-500.0,0.00022191,4]
[346104968,1734706249264,-500.0,0.00022191,4]
[346104969,1734706249274,-500.0,0.00022191,4]
[346104970,1734706249283,-822.47,0.00022191,4]
[346104971,1734706249294,-617.61,0.00022191,4]
[346104972,1734706249303,-500.0,0.00022191,4]
[346104973,1734706249313,-500.0,0.00022191,4]
[346104974,1734706249323,-1757.83,0.00022191,4]
[346104975,1734706249334,-1104.64,0.00022191,4]
[346104976,1734706249344,-500.0,0.00022191,4]
[346104977,1734706249354,-502.16,0.00022191,4]
[346104978,1734706249363,-511.8421308,0.00022191,4]
[346104979,1734706249373,-1801.99,0.00022191,4]
[346104980,1734706249383,-511.59448633,0.00022191,4]
[346104981,1734706249392,-521.93713362,0.00022191,4]
[346104982,1734706249402,-835.37,0.00022191,4]
[346104983,1734706249412,-659.58,0.00022191,4]
[346104984,1734706249421,-500.0,0.00022191,4]
[346104985,1734706249431,-500.0,0.00022191,4]
[346104986,1734706249441,-1099.88,0.00022191,4]
[346104987,1734706249450,-500.0,0.00022191,4]
[346104988,1734706249460,-1644.62,0.00022191,4]
[346104989,1734706249470,-511.31,0.00022191,4]
[346104990,1734706249480,-500.0,0.00022191,4]
[346104991,1734706249489,-575.67,0.00022191,4]
[346104992,1734706249499,-500.0,0.00022191,4]
[346104993,1734706249508,-421.40686072,0.00022191,4]
[346104994,1734706249518,-759.0,0.00022191,4]
[346104995,1734706249528,-1240.16,0.00022191,4]
[346104996,1734706249656,-500.0,0.00022191,4]
[346104997,1734706249671,-3305.88,0.00022191,4]
[346104998,1734706249681,-567.37,0.00022191,4]
[346104999,1734706249692,-500.0,0.00022191,4]
[346105000,1734706249703,-500.0,0.00022191,4]
[346105001,1734706249714,-500.0,0.00022191,4]
[346105002,1734706249724,-336.33723582,0.00022191,4]
[346105003,1734706249735,-500.0,0.00022191,4]
[346105004,1734706249746,-500.0,0.00022191,4]
[346105005,1734706249756,-500.0,0.00022191,4]
[346105006,1734706249767,-2238.55,0.00022191,4]
[346105007,1734706249778,-500.0,0.00022191,4]
[346105008,1734706249790,-500.0,0.00022191,4]
[346105009,1734706249801,-500.0,0.00022191,4]
[346105010,1734706249811,-500.0,0.00022191,4]
[346105011,1734706249821,-1944.32,0.00022191,4]
[346105012,1734706249831,-500.0,0.00022191,4]
[346105013,1734706249841,-419.74194514,0.00022191,4]
[346105014,1734706249851,-500.0,0.00022191,4]
[346105015,1734706249861,-1038.55,0.00022191,4]
[346105016,1734706249871,-500.0,0.00022191,4]
[346105017,1734706249881,-500.0,0.00022191,4]
[346105018,1734706249891,-3471.44,0.00022191,4]
[346105019,1734706249902,-500.0,0.00022191,4]
[346105020,1734706249912,-500.0,0.00022191,4]
[346105021,1734706249923,-500.0,0.00022191,4]
[346105022,1734706249933,-500.0,0.00022191,4]
[346105023,1734706249943,-762.32,0.00022191,4]
[346105024,1734706249953,-500.0,0.00022191,4]
[346105025,1734706249963,-500.0,0.00022191,4]
[346105026,1734706249972,-500.0,0.00022191,4]
[346105027,1734706249982,-1011.14,0.00022191,4]
[346105028,1734706249992,-543.28,0.00022191,4]
[346105029,1734706250002,-500.0,0.00022191,4]
[346105030,1734706250012,-500.0,0.00022191,4]
[346105031,1734706250022,-500.0,0.00022191,4]
[346105032,1734706250035,-655.46,0.00022191,4]